Cogmind - Beta 15 @@@ ROGUE MODE // 2025.05.26 @ 02:49:19 Player: Moddy Result: Destroyed by G-47 Trooper with Particle Gun Performance ------------- Evolutions (2) 1000 Regions Visited (3) 600 Robots Destroyed (36) 180 Value Destroyed (1122) 1122 Prototype IDs (3) 60 Alien Tech Used (0) 0 Bonus (0) 0 TOTAL SCORE: 2962 Bonus ------- None Cogmind --------- Core Integrity 0/550 Matter 190/300 Energy 91/100 System Corruption 0% Temperature Cool (9) Movement Core (350) Ox6 Location -8/Materials Parts ------- > --- POWER (1) -------- (None) > --- PROPULSION (4) --- (None) > --- UTILITY (4) ------ Large Storage Unit > --- WEAPON (2) ------- (None) > --- INVENTORY (15) --- Improved Heat Sink Peak State ------------ > --- POWER ------------ Nuclear Core > --- PROPULSION ------- Armored Huge Wheel Armored Huge Wheel > --- UTILITY ---------- Large Storage Unit Trap Scanner Improved Sensor Array Targeting Computer > --- WEAPON ----------- Minigun Minigun > --- INVENTORY -------- Light Nuclear Core Light Nuclear Core Armored Huge Wheel Armored Huge Wheel Improved Heat Sink Cooling System Hardlight Generator Heavy EM Shotgun Heavy EM Shotgun Light Assault Rifle Minigun Minigun [Rating: 37] Favorites ----------- Power Light Ion Engine Engine Light Ion Engine Power Core Nuclear Core Propulsion Aluminum Leg Treads Light Treads Leg Aluminum Leg Wheel Armored Huge Wheel Utility Targeting Computer Device Trap Scanner Storage Large Storage Unit Processor Targeting Computer Protection Light Armor Plating Weapon Light Assault Rifle Energy Gun EM Pulse Gun Ballistic Gun Light Assault Rifle Ballistic Cannon Flak Cannon Launcher EMP Blaster Build | -11 -10 -9 -8 ------- Run | Yrd Mat Mat Mat Slots Evolved 4 | . . 2 2 Power . | . . . . Propulsion 2 | . . 2 . Utility 2 | . . . 2 Weapon . | . . . . Parts Attached 43 | 6 11 4 22 Power 5 | 1 1 . 3 Engine 2 | 1 1 . . Core 3 | . . . 3 Reactor . | . . . . Propulsion 13 | 2 3 3 5 Treads 2 | . 2 . . Leg 7 | 2 1 3 1 Wheel 4 | . . . 4 Hover . | . . . . Flight . | . . . . Utility 11 | 1 4 . 6 Device 4 | . . . 4 Storage 4 | 1 3 . . Processor 2 | . 1 . 1 Hackware . | . . . . Protection 1 | . . . 1 Artifact . | . . . . Weapon 14 | 2 3 1 8 Energy Gun 3 | 1 . . 2 Energy Cannon . | . . . . Ballistic Gun 8 | 1 3 . 4 Ballistic Cannon 2 | . . . 2 Launcher 1 | . . 1 . Special Weapon . | . . . . Impact Weapon . | . . . . Slashing Weapon . | . . . . Piercing Weapon . | . . . . Special Melee Weapon . | . . . . Unidentified Prototypes 1 | . . . 1 Parts Lost 21 | . 1 . 20 Power 3 | . . . 3 Propulsion 4 | . . . 4 Utility 6 | . . . 6 Weapon 8 | . 1 . 7 Highest Loss Streak 19 | . 1 . 19 To Critical Strikes . | . . . . Average Backups 8 | 2 5 9 11 Power 1 | . 1 1 1 Propulsion 2 | 1 2 3 2 Utility 2 | . . 2 3 Weapon 2 | 1 1 1 4 Tool/Special . | . . . . Unused Backups 8 | . . . 8 Power 4 | . . . 4 Propulsion 1 | . . . 1 Utility 1 | . . . 1 Weapon 2 | . . . 2 Tool/Special . | . . . . Average Slot Usage (%) 92 | . 96 99 83 Engine 8 | . 13 11 . Core 2 | . . . 7 Treads 8 | . 20 . . Leg 20 | . 7 43 18 Wheel 2 | . . . 7 Device 2 | . . . 8 Storage 12 | . 15 11 9 Processor 10 | . 10 11 8 Protection 1 | . . . 6 Energy Gun 4 | . 9 . . Ballistic Gun 16 | . 17 17 15 Launcher 1 | . . 4 . Peak Build Rating 37 | 6 8 11 37 Average Rating 13 | 4 7 10 25 On Entrance 6 | . 6 8 11 Naked Turns . | . . . . Heaviest Build 89 | 13 89 28 41 Greatest Support 56 | 20 40 40 56 Greatest Overweight (x) 12 | . 4 . 12 Average Overweight (x) . | . . . . Largest Inventory Capacity 25 | 8 25 15 15 Average Capacity 16 | 7 18 15 15 Most Carried 15 | 7 12 12 15 Average Carried 8 | 3 5 9 11 Final Capacity 15 | 8 15 15 15 Final Carried 9 | 4 8 9 1 Class Distribution -------------------- 83% | Mutant 16% | Scavenger-Mutant Dominant Class ---------------- Mutant | -10/Materials Scavenger-Mutant | -9/Materials Mutant | -8/Materials Resources | -11 -10 -9 -8 ----------- Run | Yrd Mat Mat Mat Matter Collected 1242 | 155 223 164 700 Remotely . | . . . . Salvage Created 1350 | . 264 200 886 Parts 89 | . 17 9 63 Haulers Intercepted . | . . . . Recyclers Shooed 1 | . 1 . . Parts Field Recycled . | . . . . Retrieved Matter . | . . . . Parts Self-Destructed . | . . . . Prevented . | . . . . Kills | -11 -10 -9 -8 ------- Run | Yrd Mat Mat Mat Combat Hostiles Destroyed 27 | . 5 6 16 Guns 24 | . 5 5 14 AOE 3 | . . 1 2 Classes Destroyed 10 | . 4 . 6 Worker 1 | . . . 1 Builder 1 | . . . 1 Recycler 1 | . 1 . . Watcher 6 | . 3 1 2 Swarmer 7 | . 3 3 1 Grunt 13 | . 2 3 8 Brawler 1 | . . . 1 Sentry 4 | . . . 4 Specialist 1 | . . . 1 Heavy 1 | . . . 1 Best Kill Streak 4 | . 3 4 3 Combat Bots Only 4 | . 3 4 3 Max Kills in Single Turn 2 | . 1 1 2 Gunslinging . | . . . . Exploded 2 | . . 1 2 Melee . | . . . . Uniques/NPCs Destroyed . | . . . . Combat | -11 -10 -9 -8 -------- Run | Yrd Mat Mat Mat Hostile Shots Fired 427 | . 35 26 366 Missed 134 | . 6 8 120 Hits 293 | . 29 18 246 Projectile 293 | . 29 18 246 Critical Strikes 7 | . . . 7 Damage Taken 3645 | . 322 247 3076 Core 599 | . 23 23 553 Absorbed by Shields 164 | . . . 164 Core Remaining (%) 94 | 100 90 94 . Volleys Fired 130 | . 32 19 79 Largest 2 | . 2 2 2 Hottest 100 | . 60 53 100 Shots Fired 252 | . 60 38 154 Gun 247 | . 60 35 152 Cannon 2 | . . . 2 Launcher 3 | . . 3 . Special . | . . . . Kinetic 227 | . 45 35 147 Thermal . | . . . . Explosive . | . . . . Electromagnetic 25 | . 15 3 7 Robot Hit Streak 12 | . 12 10 11 Robot Miss Streak 5 | . 3 1 5 Penetration Max . | . . . . Secondary Targets 5 | . 1 1 3 Max Gunslinging Chain 1 | . 1 1 1 Shots Hit Robots 172 | . 37 26 109 Core Hits 70 | . 18 11 41 Critical Kills . | . . . . Critical Parts Destroyed 2 | . 1 1 . Critical Strikes 2 | . 1 1 . Destroy 2 | . 1 1 . Melee Attacks . | . . . . Impact . | . . . . Slashing . | . . . . Piercing . | . . . . Sneak Attacks . | . . . . Combat Hostiles . | . . . . Follow-up Attacks . | . . . . Damage Inflicted 2736 | . 373 226 2137 Guns 2316 | . 367 186 1763 Cannons 25 | . . . 25 Explosions 377 | . . 40 337 Melee . | . . . . Ramming 18 | . 6 . 12 Kinetic 2068 | . 243 186 1639 Thermal . | . . . . Explosive 337 | . . . 337 Electromagnetic 313 | . 124 40 149 Impact . | . . . . Slashing . | . . . . Piercing . | . . . . Highest Corruption . | . . . . Average Corruption . | . . . . Corruption Purged . | . . . . Corruption Blocked . | . . . . Overload Shots . | . . . . Overflow Damage 25 | . . . 25 Projectiles . | . . . . Explosions 25 | . . . 25 Melee . | . . . . Knockbacks . | . . . . Impact . | . . . . Kinetic . | . . . . Secondary . | . . . . Self-Inflicted Damage 23 | . . 19 4 Shots 1 | . . 1 . Rammed 7 | . 1 . 6 Targets Rammed 7 | . 1 . 6 Kicked . | . . . . Crushed . | . . . . Highest Temperature 112 | . 85 6 112 Average Temperature 17 | . 31 4 14 Received Heat Transfer 678 | . 144 33 501 Siege Activations . | . . . . Martial Activations . | . . . . Shielding Activations . | . . . . Robots Disrupted . | . . . . Combat Hostiles . | . . . . Robots Corrupted . | . . . . Combat Hostiles . | . . . . Parts Fried . | . . . . Impact Corruptions . | . . . . Robots Melted . | . . . . Combat Hostiles . | . . . . Parts Melted . | . . . . Heat Transferred . | . . . . Parts Sabotaged . | . . . . Parts Stolen . | . . . . Parts Stripped . | . . . . Power Chain Reactions . | . . . . Alert | -11 -10 -9 -8 ------- Run | Yrd Mat Mat Mat Maximum Alert Level . | . . . . Low Security (%) 100 | 100 100 100 100 Level 1 . | . . . . Level 2 . | . . . . Level 3 . | . . . . Level 4 . | . . . . Level 5 . | . . . . High Security . | . . . . Max Security . | . . . . Peak Influence 169 | . 86 95 169 Initial 13 | . . 12 13 Average 39 | . 18 30 77 Influence Increases 902 | . 155 222 525 Destroy 0b10 Robot/C 540 | . 100 120 320 Destroy 0b10 Robot/NC 45 | . 20 5 20 Destroy Leader 152 | . 26 32 94 Successful Hack 14 | . 9 5 . Disable Machine 45 | . . . 45 Destroy Structure 16 | . . . 16 Lose Combat Pursuer 90 | . . 60 30 Influence Decreases 875 | . 125 221 529 Entered New Map 36 | . . 18 18 Time Decay 629 | . 115 203 311 Lost Part 210 | . 10 . 200 Squads Dispatched 4 | . . 2 2 Investigation . | . . . . Extermination . | . . . . Reinforcement 4 | . . 2 2 Assault . | . . . . Garrison . | . . . . Intercept . | . . . . Searches Triggered . | . . . . Construction Impeded . | . . . . Haulers Reinforced . | . . . . Active Scanning Responses . | . . . . Cargo Convoy Interrupts . | . . . . Stealth | -11 -10 -9 -8 --------- Run | Yrd Mat Mat Mat Distress Signals 4 | . 1 1 2 Communications Jammed . | . . . . Distress Signals . | . . . . Times Spotted 54 | . 12 12 30 Peak Tracking Total 11 | . 5 4 11 Tactical Retreats 5 | . . 3 2 Traps | -11 -10 -9 -8 ------- Run | Yrd Mat Mat Mat Traps Triggered 6 | . 5 1 . Indirectly . | . . . . Trap Hack Attempts . | . . . . Triggered . | . . . . Disarmed . | . . . . Reprogrammed . | . . . . Reused . | . . . . Traps Extracted . | . . . . Installed . | . . . . Triggered . | . . . . Machines | -11 -10 -9 -8 ---------- Run | Yrd Mat Mat Mat Machines Disabled 3 | . . . 3 Max in Single Turn 2 | . . . 2 Machines Repaired . | . . . . Machines Dismantled . | . . . . Machines Sabotaged . | . . . . Overloaded Fab Kills . | . . . . Hacking | -11 -10 -9 -8 --------- Run | Yrd Mat Mat Mat Machines Accessed 8 | . 5 2 1 Terminals 6 | . 4 2 . Fabricators . | . . . . Repair Stations . | . . . . Recycling Units 2 | . 1 . 1 Scanalyzers . | . . . . Garrison Access . | . . . . Total Hacks 14 | . 8 4 2 Successful 8 | . 6 2 . Failed 6 | . 2 2 2 Catastrophic . | . . . . Database Lockouts . | . . . . Manual . | . . . . Terminals 10 | . 6 4 . Fabricators . | . . . . Repair Stations . | . . . . Recycling Units 4 | . 2 . 2 Scanalyzers . | . . . . Garrison Access . | . . . . Terminal Hacks 7 | . 5 2 . Prototype ID Bank 1 | . . 1 . Emergency Access Points 2 | . 1 1 . Locate Traps 2 | . 2 . . Hauler Manifests 1 | . 1 . . Zone Layout 1 | . 1 . . Fabricator Hacks . | . . . . Repair Station Hacks . | . . . . Recycling Unit Hacks 1 | . 1 . . Retrieve Components 1 | . 1 . . Scanalyzer . | . . . . Garrison Access Hacks . | . . . . Unauthorized Hacks . | . . . . Terminals . | . . . . Fabricators . | . . . . Repair Stations . | . . . . Recycling Units . | . . . . Scanalyzers . | . . . . Garrison Access . | . . . . Data Cores Recovered . | . . . . Used . | . . . . Hacking Detections 3 | . 1 1 1 Full Trace Events . | . . . . Feedback Events . | . . . . Feedback Blocked . | . . . . Robot Schematics Acquired . | . . . . Robots Built . | . . . . Authchips . | . . . . Time . | . . . . Total Robot Build Rating . | . . . . Part Schematics Acquired . | . . . . Parts Built . | . . . . Authchips . | . . . . Time . | . . . . Total Part Build Rating . | . . . . Parts Repaired . | . . . . Time . | . . . . Parts Recycled . | . . . . Recycled Matter . | . . . . Retrieved Matter . | . . . . Retrieved Components 3 | . 3 . . Parts Scanalyzed . | . . . . Part Schematics Acquired . | . . . . Parts Damaged . | . . . . Bothacking | -11 -10 -9 -8 ------------ Run | Yrd Mat Mat Mat Used RIF Installer . | . . . . Robots Hacked . | . . . . Non-combat . | . . . . Combat . | . . . . Robot Hacks Applied . | . . . . Relay Couplers Released . | . . . . Fabnet Peak Effective % . | . . . . Robots Rewired . | . . . . Allies Hacked . | . . . . Hacks Repelled . | . . . . Allies | -11 -10 -9 -8 -------- Run | Yrd Mat Mat Mat Total Allies . | . . . . Largest Group . | . . . . Highest-Rated Group . | . . . . Highest-Rated Ally . | . . . . Total Orders . | . . . . Ally Attacks . | . . . . Total Damage . | . . . . Kills . | . . . . Allies Corrupted . | . . . . Allies Melted . | . . . . Intel | -11 -10 -9 -8 ------- Run | Yrd Mat Mat Mat Active Infowar (turns) 567 | . . . 567 Sensors 239 | . . . 239 Traps 378 | . . . 378 Robot Analysis Total . | . . . . Derelict Logs Recovered . | . . . . Drone Launches . | . . . . Drone Recoveries . | . . . . Exploration | -11 -10 -9 -8 ------------- Run | Yrd Mat Mat Mat Turns Passed 2250 | 58 933 549 710 Spaces Moved 1111 | 38 366 368 339 Core 10 | 4 . . 6 Treads 243 | . 243 . . Legs 735 | 34 123 368 210 Wheels 123 | . . . 123 Hover . | . . . . Flight . | . . . . Fastest Speed 50 | 50 120 120 100 Average Speed 151 | 112 216 120 120 Slowest Speed 650 | 120 400 120 650 Overloaded Moves . | . . . . Propulsion Burnouts . | . . . . Robots Hopped . | . . . . Potential Cave-ins . | . . . . Cave-ins Triggered . | . . . . Exploration Rate (%) 32 | 3 68 29 30 Regions Visited 3 Branch Regions . Pre-discovered Areas . | . . . . Known Exits Taken . | . . . . Unknown Exits Taken 3 | 1 1 1 . Scrap Searched . | . . . . Spaces Dug . | . . . . Terrain Destroyed 14 | . . . 14 Melee . | . . . . Projectile . | . . . . AOE 14 | . . . 14 Terrain Rammed . | . . . . Walls Destroyed . | . . . . Machines Disabled . | . . . . Actions | -11 -10 -9 -8 --------- Run | Yrd Mat Mat Mat Total 1461 | 53 453 444 511 Wait 68 | . 14 44 10 Move 1108 | 37 365 367 339 Hop . | . . . . Pick Up 60 | 10 19 6 25 Fast Attach . | . . . . Attach 38 | 6 12 2 18 Detach . | . . . . Swap 22 | . 6 3 13 Drop 28 | . 4 3 21 Fire 130 | . 32 19 79 Melee . | . . . . Ram 6 | . . . 6 Kick . | . . . . Crush 1 | . 1 . . Escape Stasis . | . . . . Rewire . | . . . . Trap . | . . . . Miscellaneous . | . . . . Route ------- -11/Scrapyard -10/Materials (discovered 4 exits: *Mat x2 / [*Min x2]) -9/Materials -8/Materials History --------- Turn | Location | Event 2 | -11/Scrapyard | Met Revision 17 21 | -11/Scrapyard | Discovered new exit (range 15) 59 | -11/Scrapyard | Entered Materials 315 | -10/Materials | Build established: Mutant 411 | -10/Materials | Discovered new exit (range 8) 541 | -10/Materials | Discovered new exit (range 12) 622 | -10/Materials | Discovered new exit (range 12) 935 | -10/Materials | Discovered new exit (range 15) 992 | -10/Materials | Entered another Materials area 992 | -9/Materials | Evolved 2 slots: Propulsion x2 1176 | -9/Materials | Discovered new exit (range 10) 1299 | -9/Materials | Build established: Scavenger-Mutant 1541 | -9/Materials | Entered another Materials area 1541 | -8/Materials | Evolved 2 slots: Utility x2 1880 | -8/Materials | Build established: Mutant 2217 | -8/Materials | Core integrity fell below 50% 2244 | -8/Materials | Core integrity fell below 20% 2251 | -8/Materials | Destroyed by G-47 Trooper with Particle Gun Last Messages --------------- K-01 Serf collects debris. Imp. Sensor Array destroyed. K-01 Serf collects debris. S-10 Pest destroyed. U-05 Engineer lays Concrete. S-10 Pest destroyed. Hardlight Generator destroyed. Targeting Computer destroyed. Lgt. Assault Rifle destroyed. Minigun destroyed. S-10 Pest destroyed. Acquired 13 matter. Minigun destroyed. Cooling System destroyed. Slammed into S-10 Pest. Acquired 10 matter. Slammed into S-10 Pest. Destabilizing: Core damaged (-22). K-01 Serf collects debris. Slammed into S-10 Pest. Map ----- +----------------------------------------------------+ | ?????????????????????????????????????????????????? | | ?????????????????????????????????????????????????? | | ?????????????????????????????????????????????????? | | ?????????????????????????????????????????????????? | | ?????????????????????????????????????????????????? | | ?????????????????????????????????????????????????? | | ?????????????????????????????????????????????????? | | ?????????????????????????????????????????????????? | | ?????????????????????????????????????????????????? | | ?????????????????????????????????????????????????? | | ?????????????????????????????????????????????????? | | ?????????????????????????????????????????????????? | | ?????????????????????????????????????????????????? | | ?????????????????????????????????????????????????? | | ?????????????????????????????????????????????????? | | ?????????????????????????????????????????????????? | | ?????????????????????????????????????????????????? | | ?????????????????????????????????????????????????? | | ?????????????????????###########?????????????????? | | ?????????????????????# / #?????????????????? | | ?????????????????????# """ #?????????????????? | | ?????????????????????# """ #?????????????????? | | ?????????????????????# """ #?????????????????? | | ?????????????????????# s " " #?????????????????? | | ?????????????????????# gs ["R" #?????????????????? | | ?????????????????????# ! @s""" #??????##?????????? | | ?????????????????????# s [= #????? #?????????? | | ?????????????????????#+##k########### ########???? | | ?????????????????##??# ???? | | ?????????????????# # ??? | | ?????????????????# =%* ??? | | ?????????????????# # u != ??? | | ?????????????????###?# = [ ??? | | ?????????????????????######## *%= ###+##?????????? | | ???????????????????????????## *%["##?????????????? | | ???????????????????????????# =*! #?????????????? | | ????????????????????######## % = #?????????????? | | ?????????????????? ! #?????????????? | | ?????????????????? #?????????????? | | ?????????????????? = #?????????????? | | ???????????????????######+## |%! #?????????????? | | ???????????????????????????# = #?????????????? | | ???????????????????????????### %[#############???? | | ?????????????????????????????# [ # T #???? | | ?????????????????????????????# + #???? | | ?????????????????????????????#% # * ! ! #???? | | ?????????????????????????????# # #???? | | ?????????????????????????????# #? " """"" #???? | | ?????????????????????????????# #?""""""""??#???? | | ?????????????????????????????#% #??""" "????????? | +----------------------------------------------------+ Best States ------------- Heat Dissipation 31 Energy Generation 14 Energy Capacity 250 Matter Stores 269 Matter Capacity 350 Sight Range 16 Robot Scan Range 15 Terrain Scan Density 10 Armor Coverage 150 Evasion (%) 55 Targeting Accuracy 5 Recoil Reduction 2 Item Schematics ----------------- None Robot Schematics ------------------ None Fabricated ------------ Nothing Repaired ---------- Nothing Alien Tech Used ----------------- None Achievements -------------- More Dakka Please Challenges ------------ None Game ------ Seed VisualAntigravDrillbomb Manual? 0 Play Time 00:25:33 Cumulative 11.3 hours Start 2025.05.26 @ 02:10:09 End 2025.05.26 @ 02:49:19 Sessions 1 Manual Loads 0 Difficulty Rogue Special Mode None Game No. 23 Rogue 23 Adventurer 0 Explorer 0 Win Type - Total 0 Types 0/0/0/0/0/0/0/0/0/0 Lore% 9 Gallery% 21 Achievement% 16 Wizard Run 0 Options --------- Layout 1 ASCII 0 Keyboard 0 Movement Numpad Keybinds 0 Fullscreen 1 Font 32/Tamsyn Map View 25x20 Zoom Use 83% Tactical HUD 0 Map Filters NONE Filters NONE Steam 1 RUN: 3a928558-2bb2-41a4-b932-b9d535999a44